bitfinex-derivatives/quotes_ETHF0:USTF0_20240924
["timestamp","ask_amount","ask_price","bid_price","bid_amount"]
[1727216202500,0.796,2668.1,2667.8,0.37481]
[1727216202700,0.796,2668.1,2667.9,0.3748]
[1727216203196,0.796,2668.1,2667.6,0.6874]
[1727216203505,0.796,2668.1,2667.9,0.3748]
[1727216204902,3.2078,2668.0,2667.8,0.37481]
[1727216205293,3.2078,2668.0,2667.7,0.37482]
[1727216205690,3.2078,2668.0,2667.8,0.37482]
[1727216205888,3.2078,2668.0,2667.3,2.8763]
[1727216205889,3.2078,2668.0,2667.7,0.37483]
[1727216206099,3.2078,2668.0,2667.3,2.8763]
[1727216206995,3.2078,2668.0,2667.8,0.37481]
[1727216207200,3.2078,2668.0,2667.7,0.37482]
[1727216207398,3.2078,2668.0,2667.4,0.37487]
[1727216207399,4.12281,2667.9,2667.4,0.37487]
[1727216207601,1.73451,2667.9,2667.4,0.37487]
[1727216207797,3.2078,2667.8,2667.4,0.37487]
[1727216208503,3.2078,2667.8,2667.6,0.37483]
[1727216208692,1.3597,2667.9,2667.6,0.37483]
[1727216209708,3.2078,2667.8,2667.6,0.37483]
[1727216209904,1.3597,2667.9,2667.5,0.37485]
[1727216210101,3.2078,2667.7,2667.5,0.37485]
[1727216210695,4.0038,2667.7,2667.4,0.37487]
[1727216210896,4.0038,2667.7,2666.8,4.17332607]
[1727216210897,0.672,2667.6,2666.8,4.17332607]
[1727216211109,3.2078,2667.0,2666.4,2.37972607]
[1727216211311,3.2078,2667.0,2666.4,1.3272]
[1727216211312,1.3624,2666.9,2666.4,1.3272]
[1727216211706,1.3624,2666.9,2666.6,0.37498]
[1727216212114,1.3624,2666.9,2666.7,0.37497]
[1727216213101,1.3624,2666.9,2666.4,4.5672]
[1727216213297,3.2078,2667.5,2667.2,0.37489]
[1727216213512,0.796,2667.6,2667.5,0.37486]
[1727216215009,0.796,2667.6,2667.5,5.06082]
[1727216215609,0.796,2667.6,2667.5,4.12366]
[1727216216612,0.796,2668.0,2667.4,3.24]
[1727216216816,0.796,2668.0,2667.8,0.37481]
[1727216217114,0.796,2668.0,2667.4,3.24]
[1727216217515,0.796,2668.0,2667.8,0.37481]
[1727216217912,0.796,2668.0,2667.9,0.3748]
[1727216221213,0.6233,2668.7,2668.1,0.93693]
[1727216221413,0.6233,2668.7,2668.6,0.3747]
[1727216221721,3.2078,2668.9,2668.7,0.37469]
[1727216221919,3.2078,2668.9,2668.6,0.3747]
[1727216222819,1.309,2669.3,2668.5,3.2078]
[1727216223118,3.58243,2669.2,2668.3,8.00335449]
[1727216223330,0.37464,2669.1,2668.5,0.37471]
[1727216223713,3.2078,2669.2,2668.2,5.2223]
[1727216223916,3.2078,2669.2,2668.3,0.37475]
[1727216223917,3.2078,2668.9,2668.3,0.37475]
[1727216224223,0.6569,2668.8,2668.2,2.0145]
[1727216224418,0.6569,2668.8,2668.2,0.6518]
[1727216224620,3.2078,2668.6,2668.2,1.02656]
[1727216224831,0.37471,2668.6,2668.0,0.37478]
[1727216225018,4.5305,2668.7,2668.2,0.37475]
[1727216225215,3.2078,2668.4,2668.1,0.37477]
[1727216225423,3.2078,2668.4,2667.7,4.138]
[1727216225619,3.2078,2668.4,2667.7,4.51283]
[1727216225814,3.2078,2668.4,2667.6,0.6469]
[1727216225815,3.2078,2668.1,2667.6,0.96502281]
[1727216226020,3.2078,2667.8,2667.6,0.96502281]
[1727216226221,1.917,2668.0,2667.6,1.33986281]
[1727216226524,6.9566,2667.9,2667.6,0.96502281]
[1727216226823,0.37483,2667.7,2667.6,0.96502281]
[1727216227024,0.37484,2667.7,2667.5,1.44753422]
[1727216227326,6.9566,2667.6,2667.5,1.44753422]
[1727216227623,7.33145,2667.6,2667.5,1.44753422]
[1727216227825,12.9566,2667.6,2667.5,1.44753422]
[1727216228022,6.9566,2667.6,2667.5,1.44753422]
[1727216228221,0.37487,2667.4,2667.3,1.93004563]
[1727216228416,6.9888,2667.5,2667.1,1.37485704]
[1727216228621,0.37496,2666.8,2666.7,2.89506845]
[1727216228825,6.82276,2666.8,2666.7,2.89506845]
[1727216229021,16.57236,2666.8,2666.7,2.89506845]
[1727216230919,0.37506,2666.1,2665.8,0.087]
[1727216231123,3.2078,2665.9,2665.2,1.0376739]
[1727216231323,3.2078,2665.9,2665.8,0.3751]
[1727216231626,3.2078,2666.3,2665.9,0.37508]
[1727216232014,3.2078,2666.3,2666.1,0.37505]
[1727216232212,0.37498,2666.7,2666.1,0.37505]
[1727216232419,1.363,2666.6,2665.8,3.2078]
[1727216232621,3.2078,2666.5,2665.9,0.6325]
[1727216232822,3.2078,2666.5,2666.0,0.37507]
[1727216233025,3.2078,2666.5,2666.1,0.37505]
[1727216234417,3.58281,2666.5,2666.0,0.37506]
[1727216234623,3.58281,2666.5,2666.0,0.37507]
[1727216234818,3.2078,2666.5,2665.9,0.6325]
[1727216235424,3.2078,2666.5,2666.1,0.37505]
[1727216235832,3.2078,2666.5,2665.9,0.6325]
[1727216236034,3.58281,2666.5,2666.0,0.37506]
[1727216236234,3.2078,2666.5,2665.9,0.6325]
[1727216236425,3.2078,2666.5,2665.9,1.2979]
[1727216236728,3.59276,2666.8,2665.9,4.5057]
[1727216236934,3.2178,2666.8,2666.0,0.93768]
[1727216237128,3.2178,2666.8,2666.5,0.37499]
[1727216237437,3.2178,2666.8,2666.7,0.37497]
[1727216237727,3.2178,2666.8,2666.2,3.2078]
[1727216237931,3.2178,2666.8,2666.4,0.37501]
[1727216238132,3.2178,2666.8,2666.5,0.375]
[1727216238324,3.2178,2666.8,2666.5,0.37499]
[1727216238529,0.01,2666.8,2666.5,0.37499]
[1727216238737,3.2178,2666.8,2666.2,3.2078]
[1727216239328,0.37502,2666.4,2665.9,1.67298]
[1727216239526,3.58283,2666.3,2665.9,1.2979]
[1727216239725,3.58283,2666.3,2665.9,1.67298]
[1727216239931,0.375,2666.5,2666.0,0.37507]
[1727216240337,3.2078,2666.3,2665.9,1.67298]
[1727216240537,3.58284,2666.3,2665.9,1.2979]
[1727216240728,3.58284,2666.3,2665.9,1.67298]
[1727216241223,3.2078,2666.0,2665.7,0.37511]
[1727216241429,3.7512,2665.9,2665.3,0.6891]
[1727216241633,0.37509,2665.9,2665.6,0.37512]
[1727216241824,4.12629,2665.9,2665.5,0.37514]
[1727216242031,0.37511,2665.8,2665.4,0.37515]
[1727216242335,3.2078,2666.0,2665.4,0.37515]
[1727216242523,3.2078,2666.0,2665.3,0.6891]
[1727216242728,3.2078,2666.0,2664.6,0.93815]
[1727216242729,3.24,2665.5,2664.5,0.101]
[1727216242929,3.2078,2665.4,2664.7,0.6891]
[1727216243331,3.2078,2665.4,2665.3,0.37517]
[1727216243634,3.2078,2665.4,2665.1,0.3752]
[1727216244336,3.2078,2665.4,2664.7,0.6891]
[1727216244540,3.2078,2665.4,2664.9,0.37522]
[1727216244729,3.58296,2665.4,2664.9,0.37522]
[1727216244926,0.3752,2665.1,2664.7,0.6891]
[1727216245135,2.30182,2665.7,2663.9,0.087]
[1727216245136,3.2078,2664.8,2663.9,0.087]
[1727216245342,3.2078,2664.8,2663.8,3.2078]
[1727216245343,3.2078,2664.8,2664.0,0.6711]
[1727216245640,3.2078,2664.8,2664.1,3.2078]
[1727216245938,0.37521,2665.0,2664.4,0.37529]
[1727216246237,3.58303,2664.9,2664.3,0.3753]
[1727216246444,3.58303,2664.9,2664.1,3.2078]
[1727216246445,3.2078,2664.9,2664.4,0.37529]
[1727216247329,0.3752,2665.1,2664.5,0.37528]
[1727216247530,5.01399,2665.2,2664.4,3.2078]
[1727216247737,0.3752,2665.1,2664.5,0.37527]
[1727216247934,3.2078,2665.2,2664.6,3.24]
[1727216248136,0.0175,2665.5,2665.0,0.37521]
[1727216248137,3.2253,2665.5,2665.0,0.37521]
[1727216248335,3.2253,2665.5,2664.7,1.3288]
[1727216248336,3.2078,2665.5,2665.2,0.37518]
[1727216249139,3.2078,2665.5,2665.3,0.37516]
[1727216249335,3.2078,2665.5,2665.4,1.05515]
[1727216249640,6.9598,2665.5,2665.4,0.68]
[1727216250043,7.33494,2665.5,2665.4,0.68]
[1727216250337,12.9598,2665.5,2664.7,1.70404]
[1727216250535,0.37516,2665.4,2664.8,1.03503]
[1727216251044,0.37516,2665.4,2664.9,0.37522]
[1727216252438,3.58299,2665.2,2664.8,0.6598]
[1727216252642,3.2078,2665.2,2664.8,0.6598]
[1727216252846,0.37521,2665.1,2664.8,0.6598]
[1727216253135,0.37522,2664.9,2664.8,0.6598]
[1727216253335,0.37522,2665.0,2664.8,0.6598]
[1727216253544,3.752,2665.1,2664.8,0.6598]
[1727216253545,3.752,2665.1,2664.8,1.03503]
[1727216253742,0.3752,2665.1,2664.8,0.6598]
[1727216254740,3.2078,2665.2,2664.8,0.6598]
[1727216255244,3.58299,2665.2,2664.8,1.03503]
[1727216255632,3.58299,2665.2,2664.7,3.2078]
[1727216255633,3.752,2665.1,2664.7,3.2078]
[1727216255842,3.2078,2665.2,2664.7,3.2078]
[1727216256038,0.3752,2665.1,2664.7,3.58304]
[1727216256339,3.2078,2665.2,2664.9,0.37522]
[1727216256644,5.01395,2665.5,2665.1,0.37519]
[1727216257032,3.58298,2665.2,2664.8,0.37524]
[1727216257437,3.752,2665.1,2664.7,3.2078]
[1727216257639,6.9606,2665.2,2664.7,3.2078]
[1727216257834,0.37522,2665.0,2664.7,3.58305]
[1727216258041,0.37523,2664.9,2664.7,3.2078]
[1727216258441,0.37522,2665.0,2664.7,3.2078]
[1727216258639,0.37522,2665.0,2664.7,3.58305]
[1727216258841,0.37522,2665.0,2664.7,3.2078]
[1727216259043,0.37523,2664.9,2664.7,3.2078]
[1727216259242,0.37525,2664.8,2664.5,0.6432]
[1727216259550,0.37525,2664.8,2664.5,1.01848]
[1727216260039,3.58303,2664.9,2664.6,0.37527]
[1727216260248,3.2078,2664.9,2664.7,0.37524]
[1727216260434,0.37522,2665.0,2664.7,0.37524]
[1727216260641,0.37521,2665.0,2664.7,0.37524]
[1727216260832,4.12801,2665.0,2664.7,0.37524]
[1727216261336,3.2078,2665.2,2664.8,0.37523]
[1727216261539,3.2078,2665.2,2664.5,0.6432]
[1727216261849,3.2078,2665.2,2664.6,0.37527]
[1727216261850,0.37523,2664.9,2664.6,0.37527]
[1727216262453,0.3752,2665.1,2664.8,0.37523]
[1727216262744,3.2078,2665.2,2664.5,0.6432]
[1727216263149,0.3752,2665.1,2664.8,0.37523]
[1727216263650,0.3752,2665.1,2664.9,0.37522]
[1727216263851,0.3752,2665.1,2664.8,0.37523]
[1727216264455,3.2078,2665.2,2664.5,1.5814]
[1727216264751,3.58298,2665.2,2664.5,1.5814]
[1727216264948,3.58299,2665.2,2664.9,0.37522]
[1727216265247,0.37521,2665.0,2664.7,0.37525]
[1727216265445,3.2078,2665.2,2664.5,0.6432]
[1727216265646,0.37524,2664.8,2664.5,0.6432]
[1727216265853,0.93805,2665.0,2664.5,0.6432]
[1727216266042,0.37526,2664.7,2664.5,0.6432]
[1727216266248,4.14589,2664.9,2664.5,0.6432]
[1727216266449,0.37527,2664.6,2664.5,0.6432]
[1727216266647,0.37526,2664.7,2664.5,0.6432]
[1727216266840,4.14589,2664.9,2664.5,0.6432]
[1727216266841,0.37527,2664.6,2664.5,0.6432]
[1727216267045,3.2078,2664.6,2664.2,0.6455]
[1727216267246,3.2078,2664.6,2664.3,0.6287]
[1727216267456,3.2078,2664.9,2664.3,0.6287]
[1727216267650,3.2078,2664.9,2664.4,0.3753]
[1727216267845,3.2078,2664.9,2664.7,0.37525]
[1727216268455,3.58303,2664.9,2664.6,0.37525]
[1727216268655,3.58303,2664.9,2664.6,0.37526]
[1727216269147,3.2078,2664.9,2664.3,3.8365]
[1727216269349,3.2078,2664.9,2664.5,0.37528]
[1727216269350,0.37525,2664.8,2664.5,0.37528]
[1727216269552,0.37524,2664.8,2664.5,0.37528]
[1727216269872,0.37525,2664.7,2664.5,0.37528]
[1727216270060,0.37525,2664.8,2664.5,0.37528]
[1727216270558,0.37526,2664.7,2664.3,3.8365]
[1727216270757,4.14588,2664.9,2664.3,3.8365]
[1727216271165,0.37525,2664.7,2664.3,3.8365]
[1727216271367,0.37525,2664.7,2664.4,0.37529]
[1727216271765,6.9606,2664.6,2664.3,0.6287]
[1727216272066,0.37529,2664.5,2664.3,0.6287]
[1727216272264,4.12809,2664.5,2664.3,0.6287]
[1727216272466,3.7528,2664.4,2664.3,0.6287]
[1727216272765,3.2078,2664.6,2664.3,0.6287]
[1727216272766,3.58308,2664.6,2664.3,0.6287]
[1727216273169,3.2078,2664.6,2664.3,1.00401]
[1727216273362,3.58308,2664.6,2664.3,1.00401]
[1727216273867,0.37528,2664.5,2664.3,0.6287]
[1727216274262,3.58308,2664.6,2664.3,0.6287]
[1727216274459,3.2078,2664.6,2664.3,0.6287]
[1727216274763,3.58307,2664.6,2664.3,1.004]
[1727216275763,0.37528,2664.5,2664.3,0.6287]
[1727216276367,3.58308,2664.6,2664.3,0.6287]
[1727216277071,3.58308,2664.6,2664.3,1.00401]
[1727216278069,3.2078,2664.6,2664.4,0.37529]
[1727216278266,3.58307,2664.6,2664.3,1.004]
[1727216278962,0.37528,2664.5,2664.3,1.004]
[1727216279167,3.58308,2664.6,2664.3,1.004]
[1727216279869,0.37528,2664.5,2664.3,1.004]
[1727216280070,3.2078,2664.6,2664.3,1.004]
[1727216280071,3.58308,2664.6,2664.3,1.004]
[1727216280762,0.37528,2664.5,2664.3,1.004]
[1727216281169,3.58308,2664.6,2664.3,1.004]
[1727216281568,4.5828,2664.9,2664.3,0.6287]
[1727216281770,3.58308,2664.6,2664.3,0.6287]
[1727216281960,3.2078,2664.6,2664.4,0.37528]
[1727216282164,3.58307,2664.6,2664.4,0.37528]
[1727216282575,3.2078,2664.6,2664.3,0.6287]
[1727216282772,0.3753,2664.5,2664.3,1.00401]
[1727216282967,3.2078,2664.6,2664.3,0.6287]
[1727216282968,0.3753,2664.4,2664.3,0.6287]
[1727216283471,0.37529,2664.5,2664.3,0.6287]
[1727216283670,0.3753,2664.4,2664.3,0.6287]
[1727216284066,0.3753,2664.4,2664.3,1.00401]
[1727216284773,2.44593627,2664.8,2664.3,5.32058]
[1727216284966,4.18592247,2664.9,2664.3,0.6287]
[1727216285172,0.37526,2664.7,2664.5,0.37527]
[1727216285569,1.35337247,2664.8,2664.6,0.37526]
[1727216285871,4.56115247,2664.9,2664.7,0.37525]
[1727216286077,4.18592247,2664.9,2664.8,0.37524]
[1727216286281,3.2078,2664.9,2664.8,0.37524]
[1727216286580,3.2078,2664.9,2664.3,3.8365]
[1727216286581,5.2206138,2664.9,2664.3,0.6287]
[1727216286766,0.37527,2664.6,2664.4,0.37529]
[1727216286968,0.37527,2664.6,2664.3,0.6287]
[1727216286969,0.3753,2664.4,2664.3,0.6287]
[1727216287168,4.1289,2664.4,2664.3,0.6287]
[1727216287371,3.7536,2664.4,2664.3,1.00401]
[1727216287577,4.734752,2664.4,2664.3,1.00401]
[1727216287768,4.1289,2664.4,2664.3,0.6287]
[1727216288171,0.3753,2664.4,2664.3,0.6287]
[1727216288378,5.110052,2664.4,2664.3,0.6287]
[1727216288981,0.93829,2664.3,2663.9,3.2078]
[1727216289182,7.42989186,2664.1,2663.4,1.45507036]
[1727216289475,7.42989186,2664.1,2663.2,2.00594475]
[1727216289476,1.35750186,2663.6,2663.5,0.6525]
[1727216289679,0.98209186,2663.6,2663.5,0.6525]
[1727216289879,0.98209186,2663.7,2663.5,1.02792]
[1727216290075,0.98209186,2663.7,2663.5,0.6525]
[1727216290478,0.98209186,2663.7,2663.5,1.02792]
[1727216290682,0.98209186,2663.8,2663.6,0.37541]
[1727216290882,0.98209186,2663.8,2663.7,0.37539]
[1727216291188,1.4678138,2664.2,2663.8,0.37537]
[1727216291380,1.4678138,2664.3,2664.0,0.37534]
[1727216291575,1.4678138,2664.3,2664.1,0.6484]
[1727216291773,2.33237507,2664.5,2664.1,0.6484]
[1727216291774,1.4678138,2664.5,2664.1,0.6484]
[1727216291974,1.4678138,2664.5,2664.3,0.3753]
[1727216292276,0.37527,2664.6,2664.3,0.3753]
[1727216292469,1.4678138,2664.7,2664.6,0.37527]
[1727216292670,2.44635634,2665.0,2664.2,0.6822]
[1727216292671,1.4678138,2664.8,2664.3,3.2078]
[1727216292871,0.37528,2664.6,2664.2,1.05752]
[1727216293072,0.37528,2664.6,2664.3,0.37531]
[1727216293680,4.7078138,2664.7,2664.2,0.6822]
[1727216293877,4.7078138,2664.7,2664.2,1.05752]
[1727216293878,0.37528,2664.5,2664.2,1.05752]
[1727216294182,4.7078138,2664.7,2664.4,3.2078]
[1727216294183,1.4678138,2664.7,2664.4,3.2078]
[1727216294489,6.1434276,2665.5,2664.4,3.2078]
[1727216294490,1.4678138,2665.5,2664.6,4.17818]
[1727216294676,1.4678138,2665.6,2665.0,3.2078]
[1727216294875,0.37517,2665.3,2665.1,1.347]
[1727216295077,1.4678138,2665.5,2665.1,1.347]
[1727216295279,0.37517,2665.4,2665.1,1.347]
[1727216295582,0.37517,2665.3,2665.1,1.347]
[1727216295888,0.37516,2665.4,2665.1,1.347]
[1727216296685,0.37518,2665.2,2665.1,1.347]
[1727216297981,4.7078138,2665.4,2665.1,1.347]
[1727216298282,1.4678138,2665.5,2665.1,5.099]
[1727216298488,1.4678138,2665.7,2665.4,0.37515]
[1727216298679,0.3751,2665.8,2665.5,0.37514]
[1727216298680,1.4678138,2665.8,2665.5,0.37514]
[1727216298876,1.65542515,2665.8,2665.1,5.2089]
[1727216299079,1.65542515,2665.8,2665.5,0.37513]
[1727216299286,1.4678138,2665.8,2665.7,0.37511]
[1727216299581,3.82135634,2666.2,2665.1,5.2089]
[1727216299582,1.4678138,2666.2,2665.9,0.37508]
[1727216299777,1.4678138,2666.2,2666.0,0.6819]
[1727216300082,6.17033657,2666.3,2666.0,0.6819]
[1727216300083,7.63815037,2666.3,2666.0,0.6819]
[1727216300280,10.84595037,2666.3,2666.0,0.6819]
[1727216300479,0.37504,2666.2,2666.0,0.6819]
[1727216300683,9.37814657,2666.3,2666.0,0.6819]
[1727216300881,0.37504,2666.2,2666.0,0.6819]
[1727216301078,3.7504,2666.2,2665.6,3.2078]
[1727216301282,3.61511,2665.7,2665.6,3.2078]
[1727216301684,7.36631,2665.7,2665.6,3.2078]
[1727216301893,0.37513,2665.6,2665.4,1.356]
[1727216302216,6.9912,2665.7,2665.4,1.356]
[1727216302217,3.61512,2665.7,2665.4,1.356]
[1727216303679,3.24,2665.7,2665.4,1.356]
[1727216303986,0.37513,2665.6,2665.4,1.356]
[1727216304685,3.61512,2665.7,2665.4,1.356]
[1727216304886,0.37513,2665.6,2665.4,1.356]
[1727216305277,0.37513,2665.6,2664.7,7.4328]
[1727216305278,3.2078,2665.5,2664.7,7.4328]
[1727216305476,0.37516,2665.4,2665.0,0.3752]
[1727216306593,0.37518,2665.3,2664.9,0.37522]
[1727216306797,3.2078,2665.2,2664.9,0.37522]
[1727216307092,0.37518,2665.3,2664.9,0.37522]
[1727216307387,4.14566,2665.5,2664.8,1.68783]
[1727216307590,3.58299,2665.2,2664.8,1.68783]
[1727216307978,3.58299,2665.2,2664.9,0.37522]
[1727216308489,3.58299,2665.2,2664.8,1.68783]
[1727216308990,3.2078,2665.2,2664.8,1.3126]
[1727216309195,3.2078,2664.9,2664.8,1.3126]
[1727216309898,1.4678138,2665.6,2665.3,0.37516]
[1727216310084,0.37513,2665.6,2665.3,0.37517]
[1727216310281,3.2078,2665.6,2665.5,0.37514]
[1727216310493,0.37509,2665.9,2665.5,0.37514]
[1727216311393,2.8178138,2666.0,2665.1,3.2078]
[1727216311696,0.93782,2665.6,2665.1,3.2078]
[1727216311887,0.37518,2665.3,2664.9,4.27262]
[1727216312082,0.37518,2665.3,2664.9,1.06482]
[1727216312294,7.9156138,2665.7,2664.9,0.6896]
[1727216312493,3.2078,2665.4,2664.9,0.37522]
[1727216312997,0.37517,2665.3,2664.9,0.37522]
[1727216313295,0.37518,2665.2,2664.9,0.37522]
[1727216314181,0.37518,2665.3,2664.9,0.37522]
[1727216314385,3.2078,2665.1,2665.0,0.37521]
[1727216314780,5.3351138,2665.5,2665.0,0.37521]
[1727216314995,2.1273138,2665.5,2665.0,0.37521]
[1727216315193,0.37515,2665.4,2665.0,0.37521]
[1727216315495,4.6756138,2665.6,2665.2,0.37517]
[1727216315496,5.0507438,2665.6,2665.2,0.37517]
[1727216315694,3.58293,2665.6,2665.2,0.37517]
[1727216316500,3.2078,2665.6,2664.9,0.37522]
[1727216316704,3.2078,2665.6,2665.4,0.37515]
[1727216316996,5.9519238,2665.8,2665.3,0.37516]
[1727216316997,3.2078,2665.5,2665.3,0.37516]
[1727216317490,3.2078,2665.9,2665.4,1.2598]
[1727216317693,0.37511,2665.8,2665.4,1.63495]
[1727216317886,3.0389838,2666.1,2665.4,1.2598]
[1727216317887,3.2078,2665.6,2665.4,1.2598]
[1727216318086,0.37512,2665.7,2665.4,0.6372]
[1727216318087,3.58294,2665.5,2665.4,0.6372]
[1727216318293,3.58294,2665.5,2665.0,0.6225]
[1727216318294,0.37516,2665.4,2665.1,0.3752]
[1727216318487,3.2078,2665.5,2665.0,1.2598]
[1727216318798,3.2078,2665.2,2664.7,4.138]
[1727216318996,3.2078,2665.2,2664.9,0.37522]
[1727216318997,3.58299,2665.2,2664.9,0.37522]
[1727216319403,3.58299,2665.2,2664.8,1.01243]
[1727216319404,0.3752,2665.1,2664.8,1.01243]
[1727216319896,3.2078,2664.9,2664.8,0.6372]
[1727216320102,3.2078,2664.9,2664.8,1.01244]
[1727216320292,3.2078,2664.9,2664.8,0.6372]
[1727216320987,1.57031,2665.4,2664.8,0.6372]
[1727216321193,1.57031,2665.4,2664.8,1.01243]
[1727216321194,0.37521,2665.1,2664.8,1.01243]
[1727216321497,3.58299,2665.2,2664.8,1.01243]
[1727216321702,3.58299,2665.2,2664.9,0.37522]
[1727216321902,3.58299,2665.2,2664.8,0.6372]
[1727216321903,0.37518,2665.3,2665.0,0.3752]
[1727216322197,1.4678138,2665.5,2664.8,0.6372]
[1727216322390,3.2078,2665.4,2665.2,0.37518]
[1727216322791,3.2078,2665.3,2665.2,0.37518]
[1727216322998,4.6756138,2665.7,2665.2,0.37518]
[1727216323195,4.6756138,2665.7,2665.4,0.37515]
[1727216323196,3.2078,2665.7,2665.4,0.37515]
[1727216323394,0.37513,2665.6,2665.3,0.6339]
[1727216323592,3.2078,2665.7,2665.3,0.6339]
[1727216323793,3.58292,2665.7,2665.3,1.00906]
[1727216323995,3.2078,2665.7,2665.3,0.6339]
[1727216324294,3.2078,2665.4,2665.2,0.37518]
[1727216324694,0.3752,2665.1,2664.9,0.6339]
[1727216324897,3.2078,2665.1,2664.8,0.6372]
[1727216325087,3.2078,2665.1,2664.9,0.37522]
[1727216326107,3.2078,2665.1,2665.0,0.37521]
[1727216326300,3.2078,2665.1,2664.9,0.37522]
[1727216326491,3.2078,2665.1,2664.8,0.6372]
[1727216326702,3.2078,2665.1,2664.9,0.37522]
[1727216326907,2.22487,2665.5,2664.8,0.6372]
[1727216326908,1.4678138,2665.5,2664.8,0.6372]
[1727216327094,0.37515,2665.4,2665.1,0.37519]
[1727216327399,0.37515,2665.4,2665.0,0.3752]
[1727216327400,3.2078,2665.2,2665.0,0.3752]
[1727216327786,3.2078,2665.5,2665.1,0.3752]
[1727216327990,3.2078,2665.5,2665.0,0.3752]
[1727216327991,4.6756138,2665.5,2665.0,0.3752]
[1727216328194,3.2078,2665.2,2665.1,0.3752]
[1727216328489,3.2078,2665.2,2665.0,0.3752]
[1727216328803,0.37516,2665.4,2664.8,0.6372]
[1727216328995,3.2078,2665.3,2665.1,0.37519]
[1727216329195,3.2078,2665.3,2664.8,0.6372]
[1727216329399,5.9488138,2665.6,2665.1,0.37519]
[1727216329590,0.37515,2665.5,2665.1,0.37519]
[1727216329786,0.37515,2665.5,2665.2,0.37518]
[1727216329995,3.2078,2665.3,2665.2,0.37518]
[1727216330404,7.33497,2665.3,2665.0,0.3752]
[1727216330699,3.2078,2665.2,2665.0,0.3752]
[1727216330900,3.2078,2665.2,2664.8,0.6372]
[1727216331092,3.2078,2665.2,2665.0,0.37521]
[1727216331291,3.2078,2665.2,2664.8,0.6372]
[1727216331605,3.2078,2664.9,2664.8,0.6372]
[1727216332095,3.2078,2664.9,2664.6,0.6339]
[1727216332300,0.3753,2664.4,2664.1,0.37533]
[1727216332998,0.3753,2664.4,2664.0,0.37534]
[1727216333198,0.37529,2664.5,2663.9,1.289]
[1727216333398,3.2078,2664.3,2663.9,1.289]
[1727216333589,3.2078,2664.3,2664.1,0.37534]
[1727216334301,3.2078,2664.3,2664.2,0.37532]
[1727216335601,0.37527,2664.6,2663.9,1.289]
[1727216335801,0.37526,2664.7,2664.2,0.37532]
[1727216335999,3.2078,2664.5,2664.2,0.37532]
[1727216336303,3.58308,2664.5,2663.9,1.289]
[1727216336494,3.2078,2664.5,2664.0,0.37534]
[1727216336995,3.58309,2664.5,2663.9,1.289]
[1727216337202,3.58309,2664.5,2664.1,0.37534]
[1727216337901,3.2078,2664.5,2664.2,0.37532]
[1727216338099,3.2078,2664.5,2664.3,0.3753]
[1727216338295,3.2078,2664.5,2664.2,0.37531]
[1727216338710,3.2078,2664.5,2663.9,1.289]
[1727216338898,3.2078,2664.5,2664.2,0.37532]
[1727216339093,3.58308,2664.5,2664.1,0.37533]
[1727216339399,3.58308,2664.5,2663.9,1.289]
[1727216339604,3.58308,2664.5,2664.0,0.37534]
[1727216339605,0.3753,2664.4,2664.0,0.37534]
[1727216339802,3.2078,2664.2,2663.9,1.289]
[1727216339993,3.58313,2664.2,2663.9,1.289]
[1727216340197,3.2078,2664.2,2663.9,1.289]
[1727216340394,3.2078,2664.2,2663.7,0.37539]
[1727216340601,0.37535,2664.0,2663.7,0.37539]
[1727216340806,4.25523,2664.2,2663.8,0.37537]
[1727216341697,3.2078,2663.9,2663.6,1.0137]
[1727216341896,3.58317,2663.9,2663.6,1.0137]
[1727216342301,3.58317,2663.9,2663.5,0.99382]
[1727216342302,0.37539,2663.8,2663.5,0.99382]
[1727216342494,0.37539,2663.8,2663.6,0.37541]
[1727216342495,0.37538,2663.8,2663.6,0.37541]
[1727216342702,0.37538,2663.8,2663.5,0.6184]
[1727216342902,3.58318,2663.9,2663.6,0.3754]
[1727216343102,0.37538,2663.8,2663.6,0.3754]
[1727216343507,0.37538,2663.8,2663.5,0.99381]
[1727216343713,3.2078,2663.6,2663.5,0.99381]
[1727216343912,2.2254,2664.0,2663.5,0.99381]
[1727216343913,0.37539,2663.8,2663.5,0.99381]
[1727216344800,0.3754,2663.7,2663.4,0.37543]
[1727216345407,0.6256,2663.8,2663.3,0.6585]
[1727216345708,0.37546,2663.3,2663.0,0.37549]
[1727216346104,0.37547,2663.2,2662.9,0.3755]
[1727216346297,1.225,2663.2,2662.8,0.6589]
[1727216346500,0.37551,2662.9,2662.7,0.6608]
[1727216347204,0.37551,2662.9,2662.5,0.6589]
[1727216347205,0.37554,2662.7,2662.5,0.6589]
[1727216347403,0.37557,2662.5,2662.1,1.03641]
[1727216347910,3.2078,2662.4,2662.1,1.03641]
[1727216348300,3.2078,2662.4,2662.1,0.6608]
[1727216348505,1.225,2662.5,2662.1,0.6608]
[1727216348700,1.225,2662.5,2662.2,0.3756]
[1727216349198,1.225,2662.5,2661.7,0.9392]
[1727216349408,1.225,2662.5,2662.1,0.6535]
[1727216349600,1.225,2662.5,2662.2,0.3756]
[1727216349803,1.225,2662.5,2662.1,1.02911]
[1727216350116,1.225,2662.5,2662.2,0.37561]
[1727216350408,1.225,2662.5,2662.1,1.02911]
[1727216351104,0.37556,2662.6,2662.1,1.02911]
[1727216351303,1.226,2662.5,2662.1,1.02911]
[1727216352314,1.226,2662.5,2662.2,0.3756]